[Event "Titled Tuesday Blitz June 13 Early 2023"]
[White "Beerdsen, Thomas"]
[Black "Gonzalez Zamora, Juan Carlos"]
[WhiteFideId "1030108"]
[BlackFideId "3507548"]
[WhiteElo "2553"]
[BlackElo "2522"]
[Result "1-0"]
[Round "1"]
[TimeControl "180+2"]
[Date "2023.06.13"]
[WhiteClock "0:00:45"]
[BlackClock "0:00:00"]
[Board "58"]

1. e4 {[%clk 0:03:00]}  d6 {[%clk 0:02:58]} 2. Bc4 {[%clk 0:03:00]}  Nf6 {[%clk 0:02:58]} 3. Nc3 {[%clk 0:03:00]}  g6 {[%clk 0:02:58]} 4. Nf3 {[%clk 0:02:58]}  Bg7 {[%clk 0:02:58]} 5. e5 {[%clk 0:02:57]}  dxe5 {[%clk 0:02:57]} 6. Nxe5 {[%clk 0:02:57]}  O-O {[%clk 0:02:57]} 7. O-O {[%clk 0:02:58]}  Nbd7 {[%clk 0:02:57]} 8. d4 {[%clk 0:02:57]}  Nb6 {[%clk 0:02:55]} 9. Bb3 {[%clk 0:02:56]}  Nfd5 {[%clk 0:02:52]} 10. Qf3 {[%clk 0:02:55]}  c6 {[%clk 0:02:49]} 11. Re1 {[%clk 0:02:51]}  Be6 {[%clk 0:02:45]} 12. h4 {[%clk 0:02:36]}  a5 {[%clk 0:02:42]} 13. h5 {[%clk 0:02:30]}  a4 {[%clk 0:02:39]} 14. Bxd5 {[%clk 0:02:30]}  Bxd5 {[%clk 0:02:31]} 15. Qg3 {[%clk 0:02:28]}  Nc4 {[%clk 0:01:56]} 16. Bf4 {[%clk 0:02:15]}  Nxe5 {[%clk 0:01:51]} 17. Bxe5 {[%clk 0:02:14]}  f6 {[%clk 0:01:51]} 18. Bf4 {[%clk 0:02:13]}  g5 {[%clk 0:01:51]} 19. Bd2 {[%clk 0:02:08]}  Bf7 {[%clk 0:01:51]} 20. f4 {[%clk 0:01:58]}  Qxd4+ {[%clk 0:01:30]} 21. Be3 {[%clk 0:01:58]}  Qd6 {[%clk 0:01:24]} 22. Ne4 {[%clk 0:01:51]}  Qd5 {[%clk 0:01:00]} 23. h6 {[%clk 0:01:45]}  Bxh6 {[%clk 0:00:52]} 24. fxg5 {[%clk 0:01:45]}  Qxe4 {[%clk 0:00:49]} 25. gxh6+ {[%clk 0:01:46]}  Qg6 {[%clk 0:00:50]} 26. Qf2 {[%clk 0:01:45]}  Kh8 {[%clk 0:00:49]} 27. Bc5 {[%clk 0:01:45]}  Bd5 {[%clk 0:00:41]} 28. Rxe7 {[%clk 0:01:36]}  Rg8 {[%clk 0:00:38]} 29. Rg7 {[%clk 0:01:35]}  Rxg7 {[%clk 0:00:37]} 30. hxg7+ {[%clk 0:01:36]}  Qxg7 {[%clk 0:00:37]} 31. Bd4 {[%clk 0:01:36]}  Rf8 {[%clk 0:00:36]} 32. Rf1 {[%clk 0:01:36]}  Kg8 {[%clk 0:00:36]} 33. b3 {[%clk 0:01:32]}  axb3 {[%clk 0:00:36]} 34. axb3 {[%clk 0:01:33]}  Qg6 {[%clk 0:00:35]} 35. c4 {[%clk 0:01:32]}  Be4 {[%clk 0:00:35]} 36. Re1 {[%clk 0:01:30]}  Rf7 {[%clk 0:00:24]} 37. Re3 {[%clk 0:01:30]}  Rg7 {[%clk 0:00:23]} 38. g3 {[%clk 0:01:26]}  Kf7 {[%clk 0:00:15]} 39. Qf4 {[%clk 0:01:27]}  Qf5 {[%clk 0:00:08]} 40. Rxe4 {[%clk 0:01:21]}  Rxg3+ {[%clk 0:00:08]} 41. Kf2 {[%clk 0:01:11]}  Qxf4+ {[%clk 0:00:08]} 42. Rxf4 {[%clk 0:01:12]}  Rxb3 {[%clk 0:00:08]} 43. Rxf6+ {[%clk 0:01:13]}  Ke7 {[%clk 0:00:08]} 44. Rh6 {[%clk 0:01:14]}  Kf7 {[%clk 0:00:03]} 45. Rxh7+ {[%clk 0:01:12]}  Ke6 {[%clk 0:00:04]} 46. Rh6+ {[%clk 0:01:12]}  Kf5 {[%clk 0:00:04]} 47. Rh4 {[%clk 0:01:10]}  Rb4 {[%clk 0:00:02]} 48. Bc3 {[%clk 0:01:02]}  Rb3 {[%clk 0:00:03]} 49. Bd2 {[%clk 0:00:59]}  Ke6 {[%clk 0:00:02]} 50. Ke2 {[%clk 0:00:59]}  Kd6 {[%clk 0:00:02]} 51. Rh5 {[%clk 0:00:56]}  Kc7 {[%clk 0:00:02]} 52. Kd1 {[%clk 0:00:54]}  Ra3 {[%clk 0:00:02]} 53. Kc2 {[%clk 0:00:54]}  b5 {[%clk 0:00:02]} 54. c5 {[%clk 0:00:51]}  Ra4 {[%clk 0:00:02]} 55. Rh7+ {[%clk 0:00:51]}  Kc8 {[%clk 0:00:02]} 56. Kd3 {[%clk 0:00:50]}  Rc4 {[%clk 0:00:02]} 57. Be3 {[%clk 0:00:48]}  Ra4 {[%clk 0:00:02]} 58. Bd4 {[%clk 0:00:46]}  Ra7 {[%clk 0:00:00]} 59. Rxa7 {[%clk 0:00:45]} 1-0


[Site "https://www.chess.com"]

[Event "Titled Tuesday Blitz June 13 Early 2023"]
[White "Shubenkova, Veronika"]
[Black "Kushko, Dmitriy"]
[WhiteFideId "44124040"]
[BlackFideId "14162261"]
[WhiteElo "2060"]
[BlackElo "2230"]
[Result "1-0"]
[Round "1"]
[TimeControl "180+2"]
[Date "2023.06.13"]
[WhiteClock "0:00:13"]
[BlackClock "0:00:10"]
[Board "59"]

1. d4 {[%clk 0:02:57]}  g6 {[%clk 0:02:59]} 2. c4 {[%clk 0:02:53]}  Bg7 {[%clk 0:03:00]} 3. Nc3 {[%clk 0:02:53]}  d6 {[%clk 0:03:00]} 4. e4 {[%clk 0:02:54]}  e5 {[%clk 0:03:00]} 5. d5 {[%clk 0:02:54]}  a5 {[%clk 0:03:00]} 6. f3 {[%clk 0:02:54]}  Na6 {[%clk 0:02:59]} 7. Be3 {[%clk 0:02:53]}  f5 {[%clk 0:02:56]} 8. Bd3 {[%clk 0:02:53]}  Bh6 {[%clk 0:02:51]} 9. Qd2 {[%clk 0:02:49]}  Nc5 {[%clk 0:02:44]} 10. Nge2 {[%clk 0:02:46]}  Bxe3 {[%clk 0:02:39]} 11. Qxe3 {[%clk 0:02:46]}  Nf6 {[%clk 0:02:34]} 12. O-O-O {[%clk 0:02:44]}  f4 {[%clk 0:02:31]} 13. Qf2 {[%clk 0:02:42]}  Bd7 {[%clk 0:02:30]} 14. Nb5 {[%clk 0:02:37]}  Bxb5 {[%clk 0:02:25]} 15. cxb5 {[%clk 0:02:36]}  Qd7 {[%clk 0:02:20]} 16. Bc4 {[%clk 0:02:36]}  O-O-O {[%clk 0:02:16]} 17. Nc3 {[%clk 0:02:33]}  b6 {[%clk 0:02:16]} 18. Qc2 {[%clk 0:02:30]}  g5 {[%clk 0:02:14]} 19. a3 {[%clk 0:02:30]}  Qe7 {[%clk 0:02:07]} 20. Be2 {[%clk 0:02:28]}  Kb7 {[%clk 0:01:57]} 21. b4 {[%clk 0:02:27]}  axb4 {[%clk 0:01:56]} 22. axb4 {[%clk 0:02:28]}  Ncd7 {[%clk 0:01:57]} 23. Na4 {[%clk 0:02:27]}  Ra8 {[%clk 0:01:52]} 24. Kb2 {[%clk 0:02:25]}  Nb8 {[%clk 0:01:15]} 25. Ra1 {[%clk 0:02:21]}  h5 {[%clk 0:01:14]} 26. h3 {[%clk 0:02:20]}  Rg8 {[%clk 0:01:14]} 27. Nc3 {[%clk 0:02:13]}  Nbd7 {[%clk 0:01:08]} 28. Rhc1 {[%clk 0:02:06]}  Rxa1 {[%clk 0:01:06]} 29. Rxa1 {[%clk 0:01:59]}  Ra8 {[%clk 0:01:06]} 30. Rc1 {[%clk 0:01:52]}  Ra7 {[%clk 0:01:06]} 31. Nb1 {[%clk 0:01:37]}  Kb8 {[%clk 0:01:04]} 32. Nd2 {[%clk 0:01:36]}  Qg7 {[%clk 0:00:57]} 33. Qc3 {[%clk 0:01:33]}  g4 {[%clk 0:00:51]} 34. hxg4 {[%clk 0:01:32]}  hxg4 {[%clk 0:00:52]} 35. Nb3 {[%clk 0:01:33]}  gxf3 {[%clk 0:00:47]} 36. Bxf3 {[%clk 0:01:34]}  Qh7 {[%clk 0:00:46]} 37. Qc2 {[%clk 0:01:19]}  Nf8 {[%clk 0:00:44]} 38. Qc4 {[%clk 0:00:58]}  Ng6 {[%clk 0:00:42]} 39. Qc3 {[%clk 0:00:53]}  Qd7 {[%clk 0:00:41]} 40. Rh1 {[%clk 0:00:45]}  Qxb5 {[%clk 0:00:37]} 41. Rh6 {[%clk 0:00:43]}  Qe8 {[%clk 0:00:37]} 42. Qc1 {[%clk 0:00:29]}  Ng8 {[%clk 0:00:32]} 43. Rh7 {[%clk 0:00:29]}  Qa4 {[%clk 0:00:31]} 44. Bh5 {[%clk 0:00:23]}  N8e7 {[%clk 0:00:22]} 45. Bxg6 {[%clk 0:00:19]}  Nxg6 {[%clk 0:00:22]} 46. Rg7 {[%clk 0:00:20]}  Qa2+ {[%clk 0:00:21]} 47. Kc3 {[%clk 0:00:19]}  Qxg2 {[%clk 0:00:22]} 48. Nd2 {[%clk 0:00:14]}  f3 {[%clk 0:00:18]} 49. Kb3 {[%clk 0:00:13]}  f2 {[%clk 0:00:17]} 50. Rg8+ {[%clk 0:00:13]}  Kb7 {[%clk 0:00:13]} 51. Qc6+ {[%clk 0:00:12]}  Ka6 {[%clk 0:00:10]} 52. b5+ {[%clk 0:00:13]} 1-0


[Site "https://www.chess.com"]

[Event "Titled Tuesday Blitz June 13 Early 2023"]
[White "Przybylski, Wojciech"]
[Black "Kosakowski, Jakub"]
[WhiteFideId "1117599"]
[BlackFideId "1185080"]
[WhiteElo "2228"]
[BlackElo "2488"]
[Result "0-1"]
[Round "1"]
[TimeControl "180+2"]
[Date "2023.06.13"]
[WhiteClock "0:00:02"]
[BlackClock "0:00:06"]
[Board "63"]

1. e4 {[%clk 0:02:59]}  c5 {[%clk 0:02:47]} 2. Nc3 {[%clk 0:02:58]}  a6 {[%clk 0:02:47]} 3. Nf3 {[%clk 0:02:57]}  d6 {[%clk 0:02:46]} 4. d4 {[%clk 0:02:56]}  cxd4 {[%clk 0:02:47]} 5. Nxd4 {[%clk 0:02:56]}  Nf6 {[%clk 0:02:47]} 6. h3 {[%clk 0:02:55]}  e5 {[%clk 0:02:46]} 7. Nb3 {[%clk 0:02:55]}  h5 {[%clk 0:02:43]} 8. Be3 {[%clk 0:02:53]}  Be6 {[%clk 0:02:41]} 9. Be2 {[%clk 0:02:51]}  Nbd7 {[%clk 0:02:41]} 10. O-O {[%clk 0:02:48]}  Be7 {[%clk 0:02:41]} 11. Qd2 {[%clk 0:02:45]}  Rc8 {[%clk 0:02:41]} 12. a4 {[%clk 0:02:43]}  Nb6 {[%clk 0:02:39]} 13. a5 {[%clk 0:02:43]}  Nc4 {[%clk 0:02:39]} 14. Bxc4 {[%clk 0:02:42]}  Rxc4 {[%clk 0:02:36]} 15. f3 {[%clk 0:02:40]}  h4 {[%clk 0:02:34]} 16. Rfd1 {[%clk 0:02:38]}  Qc7 {[%clk 0:02:31]} 17. Rac1 {[%clk 0:02:31]}  O-O {[%clk 0:02:23]} 18. Nd5 {[%clk 0:02:29]}  Bxd5 {[%clk 0:02:19]} 19. exd5 {[%clk 0:02:29]}  Rc8 {[%clk 0:02:19]} 20. c3 {[%clk 0:02:20]}  Ra4 {[%clk 0:02:00]} 21. Qc2 {[%clk 0:02:11]}  Qc4 {[%clk 0:01:44]} 22. Nd2 {[%clk 0:01:50]}  Qb5 {[%clk 0:01:42]} 23. b3 {[%clk 0:01:50]}  Rxa5 {[%clk 0:01:36]} 24. c4 {[%clk 0:01:50]}  Qb4 {[%clk 0:01:33]} 25. Rb1 {[%clk 0:01:19]}  Nxd5 {[%clk 0:01:29]} 26. Bf2 {[%clk 0:01:19]}  Nc3 {[%clk 0:01:26]} 27. Qf5 {[%clk 0:00:57]}  Rf8 {[%clk 0:01:18]} 28. Ne4 {[%clk 0:00:55]}  Nxd1 {[%clk 0:01:14]} 29. Rxd1 {[%clk 0:00:42]}  Qxb3 {[%clk 0:01:15]} 30. Re1 {[%clk 0:00:36]}  Qxc4 {[%clk 0:01:13]} 31. Qd7 {[%clk 0:00:35]}  Qe6 {[%clk 0:01:07]} 32. Qxb7 {[%clk 0:00:34]}  d5 {[%clk 0:01:07]} 33. Nc3 {[%clk 0:00:33]}  Bc5 {[%clk 0:01:03]} 34. Bxc5 {[%clk 0:00:25]}  Rxc5 {[%clk 0:01:04]} 35. Ne2 {[%clk 0:00:26]}  Rfc8 {[%clk 0:01:01]} 36. Kh2 {[%clk 0:00:23]}  Rc2 {[%clk 0:00:59]} 37. Nd4 {[%clk 0:00:22]}  Qg6 {[%clk 0:00:59]} 38. Nxc2 {[%clk 0:00:21]}  Rxc2 {[%clk 0:00:59]} 39. Rg1 {[%clk 0:00:18]}  d4 {[%clk 0:00:56]} 40. Qb8+ {[%clk 0:00:18]}  Kh7 {[%clk 0:00:55]} 41. Qxe5 {[%clk 0:00:18]}  d3 {[%clk 0:00:53]} 42. Qd4 {[%clk 0:00:18]}  Qg3+ {[%clk 0:00:24]} 43. Kh1 {[%clk 0:00:18]}  Rd2 {[%clk 0:00:23]} 44. Qe4+ {[%clk 0:00:17]}  g6 {[%clk 0:00:22]} 45. Qe3 {[%clk 0:00:16]}  Qf2 {[%clk 0:00:20]} 46. Qf4 {[%clk 0:00:10]}  f5 {[%clk 0:00:06]} 47. Qc7+ {[%clk 0:00:09]}  Kh6 {[%clk 0:00:07]} 48. Qf4+ {[%clk 0:00:08]}  Kh5 {[%clk 0:00:07]} 49. Qe5 {[%clk 0:00:08]}  Re2 {[%clk 0:00:05]} 50. Qh8+ {[%clk 0:00:07]}  Kg5 {[%clk 0:00:06]} 51. Qd8+ {[%clk 0:00:08]}  Kf4 {[%clk 0:00:06]} 52. Qxd3 {[%clk 0:00:07]}  Qe3 {[%clk 0:00:06]} 53. Qc4+ {[%clk 0:00:07]}  Kg5 {[%clk 0:00:05]} 54. Qxa6 {[%clk 0:00:07]}  Re1 {[%clk 0:00:05]} 55. Rxe1 {[%clk 0:00:07]}  Qxe1+ {[%clk 0:00:06]} 56. Kh2 {[%clk 0:00:08]}  Qe5+ {[%clk 0:00:06]} 57. Kh1 {[%clk 0:00:08]}  Kf4 {[%clk 0:00:06]} 58. Qa1 {[%clk 0:00:06]}  Qxa1+ {[%clk 0:00:06]} 59. Kh2 {[%clk 0:00:02]}  Qe5 {[%clk 0:00:06]} 0-1


[Site "https://www.chess.com"]

[Event "Titled Tuesday Blitz June 13 Early 2023"]
[White "Rios Escobar, Adan"]
[Black "Gharibyan, Mamikon"]
[WhiteFideId "3403645"]
[BlackFideId "13308300"]
[WhiteElo "2462"]
[BlackElo "2445"]
[Result "0-1"]
[Round "1"]
[TimeControl "180+2"]
[Date "2023.06.13"]
[WhiteClock "0:00:00"]
[BlackClock "0:01:38"]
[Board "65"]

1. d4 {[%clk 0:03:00]}  Nf6 {[%clk 0:02:59]} 2. g3 {[%clk 0:03:00]}  c5 {[%clk 0:02:59]} 3. d5 {[%clk 0:02:59]}  b5 {[%clk 0:02:58]} 4. a4 {[%clk 0:02:59]}  b4 {[%clk 0:02:58]} 5. c4 {[%clk 0:03:00]}  bxc3 {[%clk 0:02:57]} 6. Nxc3 {[%clk 0:03:00]}  d6 {[%clk 0:02:58]} 7. e4 {[%clk 0:02:58]}  g6 {[%clk 0:02:58]} 8. Bb5+ {[%clk 0:02:57]}  Nbd7 {[%clk 0:02:56]} 9. f4 {[%clk 0:02:41]}  Qa5 {[%clk 0:02:48]} 10. e5 {[%clk 0:02:10]}  Ne4 {[%clk 0:02:19]} 11. e6 {[%clk 0:02:10]}  Nxc3 {[%clk 0:02:06]} 12. exd7+ {[%clk 0:01:43]}  Bxd7 {[%clk 0:02:07]} 13. Bxd7+ {[%clk 0:01:43]}  Kxd7 {[%clk 0:02:06]} 14. bxc3 {[%clk 0:01:39]}  Qxc3+ {[%clk 0:02:07]} 15. Bd2 {[%clk 0:01:38]}  Qd4 {[%clk 0:02:05]} 16. Nf3 {[%clk 0:01:23]}  Qxd5 {[%clk 0:02:04]} 17. Bc3 {[%clk 0:00:53]}  Qxd1+ {[%clk 0:02:02]} 18. Rxd1 {[%clk 0:00:51]}  f6 {[%clk 0:02:03]} 19. Rb1 {[%clk 0:00:30]}  Kc6 {[%clk 0:02:00]} 20. Ke2 {[%clk 0:00:27]}  Bg7 {[%clk 0:01:57]} 21. Rhc1 {[%clk 0:00:22]}  Rhb8 {[%clk 0:01:54]} 22. Ba1 {[%clk 0:00:18]}  e5 {[%clk 0:01:50]} 23. fxe5 {[%clk 0:00:16]}  fxe5 {[%clk 0:01:51]} 24. Nd2 {[%clk 0:00:08]}  Bh6 {[%clk 0:01:48]} 25. Rxb8 {[%clk 0:00:07]}  Rxb8 {[%clk 0:01:48]} 26. Rb1 {[%clk 0:00:06]}  Rxb1 {[%clk 0:01:45]} 27. Nxb1 {[%clk 0:00:07]}  c4 {[%clk 0:01:46]} 28. Na3 {[%clk 0:00:04]}  Kc5 {[%clk 0:01:46]} 29. Nb5 {[%clk 0:00:00]}  d5 {[%clk 0:01:38]} 0-1


[Site "https://www.chess.com"]

[Event "Titled Tuesday Blitz June 13 Early 2023"]
[White "Mekhitarian, Krikor Sevag"]
[Black "Jovic, Stanoje"]
[WhiteFideId "2107660"]
[BlackFideId "905020"]
[WhiteElo "2604"]
[BlackElo "2236"]
[Result "1-0"]
[Round "1"]
[TimeControl "180+2"]
[Date "2023.06.13"]
[WhiteClock "0:01:20"]
[BlackClock "0:00:00"]
[Board "66"]

1. Nf3 {[%clk 0:02:49]}  Nf6 {[%clk 0:02:59]} 2. c4 {[%clk 0:02:48]}  c5 {[%clk 0:02:59]} 3. Nc3 {[%clk 0:02:44]}  Nc6 {[%clk 0:02:58]} 4. d4 {[%clk 0:02:44]}  cxd4 {[%clk 0:02:58]} 5. Nxd4 {[%clk 0:02:45]}  g6 {[%clk 0:02:55]} 6. e4 {[%clk 0:02:45]}  Bg7 {[%clk 0:02:53]} 7. Be3 {[%clk 0:02:45]}  O-O {[%clk 0:02:50]} 8. Be2 {[%clk 0:02:43]}  d6 {[%clk 0:02:50]} 9. Nc2 {[%clk 0:02:41]}  Bd7 {[%clk 0:02:46]} 10. O-O {[%clk 0:02:40]}  Rc8 {[%clk 0:02:45]} 11. Rc1 {[%clk 0:02:39]}  a6 {[%clk 0:02:45]} 12. h3 {[%clk 0:02:27]}  Qa5 {[%clk 0:02:32]} 13. a3 {[%clk 0:02:16]}  Ne5 {[%clk 0:02:28]} 14. c5 {[%clk 0:02:06]}  dxc5 {[%clk 0:02:17]} 15. f4 {[%clk 0:02:05]}  Nc6 {[%clk 0:02:12]} 16. e5 {[%clk 0:02:05]}  Nh5 {[%clk 0:01:40]} 17. Qxd7 {[%clk 0:01:44]}  Ng3 {[%clk 0:01:37]} 18. Rfe1 {[%clk 0:01:38]}  Nf5 {[%clk 0:01:25]} 19. Bf2 {[%clk 0:01:33]}  Rc7 {[%clk 0:01:12]} 20. Qd5 {[%clk 0:01:28]}  Ncd4 {[%clk 0:01:04]} 21. Nxd4 {[%clk 0:01:28]}  Nxd4 {[%clk 0:00:55]} 22. Bxd4 {[%clk 0:01:21]}  Rd8 {[%clk 0:00:00]} 23. Qxd8+ {[%clk 0:01:20]} 1-0


[Site "https://www.chess.com"]

[Event "Titled Tuesday Blitz June 13 Early 2023"]
[White "Bueno, Alfeu Junior Varela"]
[Black "Suyarov, Mukhammadzokhid"]
[WhiteFideId "2108879"]
[BlackFideId "14210495"]
[WhiteElo "2175"]
[BlackElo "2361"]
[Result "0-1"]
[Round "1"]
[TimeControl "180+2"]
[Date "2023.06.13"]
[WhiteClock "0:00:02"]
[BlackClock "0:00:37"]
[Board "67"]

1. e4 {[%clk 0:02:57]}  e6 {[%clk 0:02:57]} 2. d4 {[%clk 0:02:57]}  d5 {[%clk 0:02:55]} 3. Nd2 {[%clk 0:02:57]}  c5 {[%clk 0:02:54]} 4. exd5 {[%clk 0:02:56]}  Qd6 {[%clk 0:02:54]} 5. dxe6 {[%clk 0:02:38]}  Bxe6 {[%clk 0:02:50]} 6. Bb5+ {[%clk 0:02:30]}  Nc6 {[%clk 0:02:50]} 7. dxc5 {[%clk 0:02:11]}  Qxc5 {[%clk 0:02:48]} 8. Qe2 {[%clk 0:02:09]}  O-O-O {[%clk 0:02:45]} 9. Bxc6 {[%clk 0:02:04]}  Qxc6 {[%clk 0:02:46]} 10. Ngf3 {[%clk 0:02:03]}  Qxc2 {[%clk 0:02:45]} 11. O-O {[%clk 0:01:56]}  Nf6 {[%clk 0:02:43]} 12. Qb5 {[%clk 0:01:27]}  Qc6 {[%clk 0:02:40]} 13. Qa5 {[%clk 0:01:24]}  Bc5 {[%clk 0:02:34]} 14. Nb3 {[%clk 0:01:16]}  Bb6 {[%clk 0:02:33]} 15. Qe5 {[%clk 0:01:06]}  Rd5 {[%clk 0:02:32]} 16. Qe2 {[%clk 0:01:03]}  Rdd8 {[%clk 0:02:20]} 17. Bf4 {[%clk 0:01:01]}  Bc4 {[%clk 0:02:13]} 18. Qe5 {[%clk 0:00:54]}  Nd7 {[%clk 0:02:12]} 19. Qf5 {[%clk 0:00:36]}  g6 {[%clk 0:02:10]} 20. Qh3 {[%clk 0:00:34]}  Bxf1 {[%clk 0:01:50]} 21. Rxf1 {[%clk 0:00:28]}  f5 {[%clk 0:01:49]} 22. Rc1 {[%clk 0:00:27]}  Nc5 {[%clk 0:01:49]} 23. Nxc5 {[%clk 0:00:24]}  Bxc5 {[%clk 0:01:49]} 24. b4 {[%clk 0:00:23]}  Rd3 {[%clk 0:01:21]} 25. bxc5 {[%clk 0:00:15]}  Rhd8 {[%clk 0:01:20]} 26. Rf1 {[%clk 0:00:06]}  Rd1 {[%clk 0:01:17]} 27. Bd6 {[%clk 0:00:05]}  Rxf1+ {[%clk 0:01:00]} 28. Kxf1 {[%clk 0:00:06]}  Re8 {[%clk 0:01:01]} 29. g4 {[%clk 0:00:04]}  fxg4 {[%clk 0:00:40]} 30. Qxg4+ {[%clk 0:00:04]}  Qd7 {[%clk 0:00:41]} 31. Qb4 {[%clk 0:00:04]}  Qh3+ {[%clk 0:00:39]} 32. Kg1 {[%clk 0:00:04]}  Qxf3 {[%clk 0:00:37]} 33. Qb5 {[%clk 0:00:02]} 0-1


[Site "https://www.chess.com"]

[Event "Titled Tuesday Blitz June 13 Early 2023"]
[White "Rahman, Masruri"]
[Black "UNSTOPPABLE_LEGEND"]
[WhiteFideId "7101163"]
[WhiteElo "2256"]
[BlackElo "2460"]
[Result "1-0"]
[Round "1"]
[TimeControl "180+2"]
[Date "2023.06.13"]
[WhiteClock "0:02:00"]
[BlackClock "0:00:09"]
[Board "70"]

1. d4 {[%clk 0:03:00]}  Nf6 {[%clk 0:02:59]} 2. Bf4 {[%clk 0:03:00]}  d5 {[%clk 0:02:51]} 3. e3 {[%clk 0:03:00]}  c5 {[%clk 0:02:52]} 4. Nc3 {[%clk 0:03:00]}  cxd4 {[%clk 0:02:51]} 5. exd4 {[%clk 0:03:00]}  a6 {[%clk 0:02:52]} 6. Nf3 {[%clk 0:03:00]}  Nc6 {[%clk 0:02:52]} 7. Ne5 {[%clk 0:03:00]}  Bd7 {[%clk 0:02:51]} 8. Nxc6 {[%clk 0:02:57]}  Bxc6 {[%clk 0:02:49]} 9. Bd3 {[%clk 0:02:58]}  Qb6 {[%clk 0:02:47]} 10. Be5 {[%clk 0:02:56]}  Qxb2 {[%clk 0:02:39]} 11. Ne2 {[%clk 0:02:56]}  e6 {[%clk 0:02:32]} 12. O-O {[%clk 0:02:55]}  Be7 {[%clk 0:02:26]} 13. Ng3 {[%clk 0:02:52]}  Bb5 {[%clk 0:02:12]} 14. Rb1 {[%clk 0:02:45]}  Qxa2 {[%clk 0:02:11]} 15. Bxb5+ {[%clk 0:02:35]}  axb5 {[%clk 0:02:08]} 16. Rxb5 {[%clk 0:02:36]}  Qa6 {[%clk 0:01:19]} 17. Qb1 {[%clk 0:02:34]}  O-O {[%clk 0:01:09]} 18. Rxb7 {[%clk 0:02:34]}  Rfe8 {[%clk 0:01:10]} 19. Qb3 {[%clk 0:02:27]}  Rac8 {[%clk 0:01:09]} 20. h3 {[%clk 0:02:04]}  Bf8 {[%clk 0:01:05]} 21. Bxf6 {[%clk 0:02:03]}  gxf6 {[%clk 0:01:06]} 22. Nh5 {[%clk 0:02:03]}  e5 {[%clk 0:00:16]} 23. Qg3+ {[%clk 0:02:00]}  Kh8 {[%clk 0:00:16]} 24. Rxf7 {[%clk 0:02:00]}  Rc6 {[%clk 0:00:09]} 25. Rxf8+ {[%clk 0:02:00]} 1-0


[Site "https://www.chess.com"]

[Event "Titled Tuesday Blitz June 13 Early 2023"]
[White "Dudzinski, Pawel"]
[Black "Perez Ponsa, Federico"]
[WhiteFideId "1117890"]
[BlackFideId "117927"]
[WhiteElo "2099"]
[BlackElo "2590"]
[Result "0-1"]
[Round "1"]
[TimeControl "180+2"]
[Date "2023.06.13"]
[WhiteClock "0:00:07"]
[BlackClock "0:01:16"]
[Board "71"]

1. e4 {[%clk 0:02:56]}  c5 {[%clk 0:02:58]} 2. c4 {[%clk 0:02:55]}  Nc6 {[%clk 0:02:58]} 3. Nc3 {[%clk 0:02:53]}  g6 {[%clk 0:02:58]} 4. g3 {[%clk 0:02:52]}  Bg7 {[%clk 0:02:59]} 5. Bg2 {[%clk 0:02:53]}  a6 {[%clk 0:03:00]} 6. Nge2 {[%clk 0:02:51]}  b5 {[%clk 0:02:59]} 7. b3 {[%clk 0:02:46]}  b4 {[%clk 0:02:59]} 8. Bb2 {[%clk 0:02:29]}  bxc3 {[%clk 0:02:59]} 9. Bxc3 {[%clk 0:02:25]}  Bxc3 {[%clk 0:02:57]} 10. dxc3 {[%clk 0:02:23]}  Rb8 {[%clk 0:02:50]} 11. f4 {[%clk 0:02:19]}  Qc7 {[%clk 0:02:41]} 12. O-O {[%clk 0:02:15]}  d6 {[%clk 0:02:41]} 13. Qd2 {[%clk 0:02:08]}  Nf6 {[%clk 0:02:39]} 14. h3 {[%clk 0:02:05]}  h5 {[%clk 0:02:35]} 15. Rae1 {[%clk 0:02:00]}  Bb7 {[%clk 0:02:30]} 16. Qe3 {[%clk 0:01:51]}  Nd7 {[%clk 0:02:24]} 17. e5 {[%clk 0:01:48]}  dxe5 {[%clk 0:02:23]} 18. f5 {[%clk 0:01:47]}  g5 {[%clk 0:02:13]} 19. Qxg5 {[%clk 0:01:42]}  Nf6 {[%clk 0:02:14]} 20. Qe3 {[%clk 0:01:24]}  Na5 {[%clk 0:02:04]} 21. Rd1 {[%clk 0:00:41]}  Bxg2 {[%clk 0:02:02]} 22. Kxg2 {[%clk 0:00:42]}  Nb7 {[%clk 0:02:01]} 23. Nc1 {[%clk 0:00:37]}  e4 {[%clk 0:01:58]} 24. Ne2 {[%clk 0:00:36]}  Qe5 {[%clk 0:01:55]} 25. Nf4 {[%clk 0:00:35]}  Nd6 {[%clk 0:01:53]} 26. Nd5 {[%clk 0:00:34]}  Nxf5 {[%clk 0:01:43]} 27. Rxf5 {[%clk 0:00:15]}  Qxf5 {[%clk 0:01:42]} 28. Qxc5 {[%clk 0:00:15]}  Nxd5 {[%clk 0:01:38]} 29. Qxd5 {[%clk 0:00:13]}  Qf3+ {[%clk 0:01:23]} 30. Kh2 {[%clk 0:00:13]}  Qf2+ {[%clk 0:01:23]} 31. Kh1 {[%clk 0:00:13]}  Qxg3 {[%clk 0:01:23]} 32. Qd7+ {[%clk 0:00:12]}  Kf8 {[%clk 0:01:24]} 33. Rg1 {[%clk 0:00:10]}  Qf3+ {[%clk 0:01:19]} 34. Kh2 {[%clk 0:00:11]}  Rg8 {[%clk 0:01:16]} 35. Qc7 {[%clk 0:00:08]}  Qf2+ {[%clk 0:01:15]} 36. Kh1 {[%clk 0:00:07]}  Qxg1# {[%clk 0:01:16]} 0-1


[Site "https://www.chess.com"]

[Event "Titled Tuesday Blitz June 13 Early 2023"]
[White "Wojtaszek, Radoslaw"]
[Black "Lopez, Nelson M, Ii"]
[WhiteFideId "1118358"]
[BlackFideId "2027895"]
[WhiteElo "2586"]
[BlackElo "2451"]
[Result "1-0"]
[Round "1"]
[TimeControl "180+2"]
[Date "2023.06.13"]
[WhiteClock "0:00:22"]
[BlackClock "0:00:00"]
[Board "76"]

1. c4 {[%clk 0:03:00]}  e5 {[%clk 0:02:58]} 2. g3 {[%clk 0:02:59]}  Nf6 {[%clk 0:02:51]} 3. Bg2 {[%clk 0:02:59]}  d5 {[%clk 0:02:51]} 4. cxd5 {[%clk 0:02:58]}  Nxd5 {[%clk 0:02:52]} 5. Nc3 {[%clk 0:02:58]}  Nxc3 {[%clk 0:02:52]} 6. bxc3 {[%clk 0:02:59]}  c6 {[%clk 0:02:50]} 7. Nf3 {[%clk 0:02:55]}  Qc7 {[%clk 0:02:50]} 8. O-O {[%clk 0:02:53]}  Be7 {[%clk 0:02:42]} 9. d4 {[%clk 0:02:52]}  exd4 {[%clk 0:02:26]} 10. Bf4 {[%clk 0:02:39]}  Qa5 {[%clk 0:02:20]} 11. cxd4 {[%clk 0:02:35]}  O-O {[%clk 0:02:18]} 12. Qb3 {[%clk 0:02:35]}  Nd7 {[%clk 0:02:07]} 13. h4 {[%clk 0:02:27]}  Nb6 {[%clk 0:02:05]} 14. Bg5 {[%clk 0:02:20]}  Bxg5 {[%clk 0:01:57]} 15. Nxg5 {[%clk 0:02:21]}  h6 {[%clk 0:01:58]} 16. Ne4 {[%clk 0:02:12]}  Be6 {[%clk 0:01:56]} 17. Qc2 {[%clk 0:02:11]}  Rad8 {[%clk 0:01:45]} 18. Nc5 {[%clk 0:02:08]}  Bc8 {[%clk 0:01:41]} 19. Rad1 {[%clk 0:02:05]}  Rfe8 {[%clk 0:01:37]} 20. e4 {[%clk 0:02:01]}  Nd7 {[%clk 0:01:30]} 21. Nb3 {[%clk 0:01:58]}  Qh5 {[%clk 0:01:23]} 22. Rfe1 {[%clk 0:01:50]}  Nf6 {[%clk 0:01:22]} 23. Nc5 {[%clk 0:01:36]}  g5 {[%clk 0:01:04]} 24. hxg5 {[%clk 0:01:30]}  hxg5 {[%clk 0:01:03]} 25. f3 {[%clk 0:01:28]}  Kg7 {[%clk 0:00:55]} 26. Kf2 {[%clk 0:01:20]}  g4 {[%clk 0:00:35]} 27. f4 {[%clk 0:01:18]}  Qg6 {[%clk 0:00:32]} 28. f5 {[%clk 0:01:04]}  Qg5 {[%clk 0:00:30]} 29. Qc3 {[%clk 0:00:42]}  b6 {[%clk 0:00:22]} 30. Nd3 {[%clk 0:00:41]}  c5 {[%clk 0:00:21]} 31. d5 {[%clk 0:00:40]}  Ba6 {[%clk 0:00:18]} 32. Nf4 {[%clk 0:00:39]}  Kf8 {[%clk 0:00:07]} 33. d6 {[%clk 0:00:35]}  Nd7 {[%clk 0:00:04]} 34. e5 {[%clk 0:00:25]}  Qxf5 {[%clk 0:00:03]} 35. Rh1 {[%clk 0:00:22]}  Kg8 {[%clk 0:00:00]} 36. Rh5 {[%clk 0:00:22]} 1-0


[Site "https://www.chess.com"]